fUSD/lending_fUSD_20260208
["ID","MTS","AMOUNT","RATE_DAILY","PERIOD"]
[404764855,1770516643605,-300.0,0.00039754,2]
[404764857,1770516643615,-300.0,0.00039754,2]
[404764859,1770516643624,-1078.62288825,0.00039754,2]
[404764861,1770516643635,-300.0,0.00039754,2]
[404764863,1770516643644,-852.9683247,0.00039754,2]
[404764865,1770516643656,-305.12354707,0.00039754,2]
[404764867,1770516643665,-300.0,0.00039754,2]
[404764869,1770516643675,-881.67763408,0.00039754,2]
[404764871,1770516643684,-300.0,0.00039754,2]
[404764873,1770516643694,-300.0,0.00039754,2]
[404764874,1770516643703,-300.0,0.00039754,2]
[404764875,1770516643712,-300.0,0.00039754,2]
[404764876,1770516643722,-306.30098188,0.00039754,2]
[404764877,1770516643732,-300.0,0.00039754,2]
[404764878,1770516643741,-300.0,0.00039754,2]
[404764879,1770516643751,-457.33043133,0.00039754,2]
[404764881,1770516643760,-300.0,0.00039754,2]
[404764883,1770516643769,-300.0,0.00039754,2]
[404764885,1770516643778,-370.2222184,0.00039754,2]
[404764887,1770516643787,-300.0,0.00039754,2]
[404764889,1770516643797,-300.0,0.00039754,2]
[404764891,1770516643807,-300.0,0.00039754,2]
[404764893,1770516643816,-300.0,0.00039754,2]
[404764895,1770516643826,-300.0,0.00039754,2]
[404764897,1770516643835,-300.0,0.00039754,2]
[404764899,1770516643844,-300.0,0.00039754,2]
[404764900,1770516643854,-516.96458608,0.00039754,2]
[404764901,1770516643864,-305.27812549,0.00039754,2]
[404764902,1770516643874,-300.0,0.00039754,2]
[404764903,1770516643884,-300.0,0.00039754,2]
[404764904,1770516643893,-300.0,0.00039754,2]
[404764905,1770516643903,-300.0,0.00039754,2]
[404764906,1770516643913,-300.0,0.00039754,2]
[404764907,1770516643922,-300.0,0.00039754,2]
[404764908,1770516643932,-572.03870209,0.00039754,2]
[404764909,1770516643942,-300.0,0.00039754,2]
[404764910,1770516643953,-300.0,0.00039754,2]
[404764911,1770516643963,-300.0,0.00039754,2]
[404764912,1770516643973,-1078.62288825,0.00039754,2]
[404764913,1770516643982,-300.0,0.00039754,2]
[404764914,1770516643992,-300.0,0.00039754,2]
[404764915,1770516644005,-852.9683247,0.00039754,2]
[404764916,1770516644015,-305.12354707,0.00039754,2]
[404764917,1770516644024,-300.0,0.00039754,2]
[404764918,1770516644035,-881.67763408,0.00039754,2]
[404764919,1770516644045,-300.0,0.00039754,2]
[404764920,1770516644054,-300.0,0.00039754,2]
[404764921,1770516644064,-300.0,0.00039754,2]
[404764922,1770516644074,-300.0,0.00039754,2]
[404764923,1770516644084,-306.30098188,0.00039754,2]
[404764924,1770516644093,-300.0,0.00039754,2]
[404764925,1770516644103,-300.0,0.00039754,2]
[404764926,1770516644112,-457.33043133,0.00039754,2]
[404764927,1770516644122,-300.0,0.00039754,2]
[404764928,1770516644131,-300.0,0.00039754,2]
[404764929,1770516644140,-300.0,0.00039754,2]
[404764930,1770516644150,-370.2222184,0.00039754,2]
[404764931,1770516644160,-300.0,0.00039754,2]
[404764932,1770516644170,-300.0,0.00039754,2]
[404764933,1770516644179,-300.0,0.00039754,2]
[404764934,1770516644191,-300.0,0.00039754,2]
[404764935,1770516644201,-300.0,0.00039754,2]
[404764936,1770516644212,-300.0,0.00039754,2]
[404764937,1770516644224,-339.40663397,0.00039961,2]
[404764938,1770516644234,-354.32,0.0004,120]
[404764939,1770516644244,-653.99,0.0004,120]
[404764940,1770516644255,-153.0,0.0004,120]
[404764941,1770516644264,-1000.0,0.0004,120]
[404764942,1770516644275,-152.0,0.0004,120]
[404764943,1770516644285,-10000.0,0.0004,120]
[404764944,1770516644295,-160.0,0.0004,120]
[404764945,1770516644304,-150.0,0.00040406,2]
[404764946,1770516644315,-707.27,0.000405,30]
[404764947,1770516644326,-153.0,0.000408,120]
[404764948,1770516644345,-4657.83024449,0.00040881,15]
[404764949,1770516644355,-4138.3239932,0.00040885,15]
[404764950,1770516644366,-152.0,0.000409,120]
[404764951,1770516644378,-612.42715191,0.00041,30]
[404764952,1770516644388,-1000.0,0.00041,120]
[404764953,1770516644400,-1000.0,0.00041,120]
[404764954,1770516644410,-13151.0,0.00041,2]
[404764955,1770516644419,-300.0,0.00041068,22]
[404764956,1770516644429,-459.07,0.0004107,120]
[404764957,1770516644439,-509.0,0.00041078,12]
[404764958,1770516644450,-329.0,0.000411,120]
[404764959,1770516644461,-260.43751861,0.00041197,10]
[404764960,1770516644472,-3484.0,0.00041291,2]
[404764961,1770516644483,-616.0,0.00041291,2]
[404764962,1770516644493,-1411.0,0.00041291,2]
[404764963,1770516644503,-1272.0,0.00041291,2]
[404764964,1770516644514,-1206.0,0.00041291,2]
[404764965,1770516644524,-917.0,0.00041291,2]
[404764966,1770516644535,-2447.0,0.00041291,2]
[404764967,1770516644546,-412.0,0.00041291,2]
[404764969,1770516644557,-3255.0,0.00041291,2]
[404764971,1770516644567,-424.39,0.000413,14]
[404764973,1770516644577,-200.0,0.00041344,2]
[404764975,1770516644586,-200.0,0.00041344,2]
[404764977,1770516644596,-200.0,0.00041344,2]
[404764979,1770516644605,-200.0,0.00041344,2]
[404764981,1770516644615,-200.0,0.00041344,2]
[404764983,1770516644624,-200.0,0.00041344,2]
[404764985,1770516644634,-200.0,0.00041344,2]
[404764987,1770516644644,-200.0,0.00041344,2]
[404764989,1770516644652,-200.0,0.00041344,2]
[404764991,1770516644662,-200.0,0.00041344,2]
[404764993,1770516644671,-200.0,0.00041344,2]
[404764995,1770516644681,-200.0,0.00041344,2]
[404764997,1770516644690,-200.0,0.00041344,2]
[404764998,1770516644699,-200.0,0.00041344,2]
[404765000,1770516644708,-200.0,0.00041344,2]
[404765002,1770516644718,-200.0,0.00041344,2]
[404765004,1770516644727,-200.0,0.00041344,2]
[404765005,1770516644736,-200.0,0.00041344,2]
[404765006,1770516644745,-200.0,0.00041344,2]
[404765007,1770516644756,-200.0,0.00041344,2]
[404765008,1770516644766,-200.0,0.00041344,2]
[404765009,1770516644776,-200.0,0.00041344,2]
[404765010,1770516644785,-200.0,0.00041344,2]
[404765011,1770516644795,-200.0,0.00041344,2]
[404765012,1770516644805,-200.0,0.00041344,2]
[404765013,1770516644815,-200.0,0.00041344,2]
[404765014,1770516644825,-200.0,0.00041344,2]
[404765015,1770516644834,-200.0,0.00041344,2]
[404765016,1770516644844,-200.0,0.00041344,2]
[404765017,1770516644854,-200.0,0.00041344,2]
[404765018,1770516644863,-200.0,0.00041344,2]
[404765019,1770516644873,-200.0,0.00041344,2]
[404765020,1770516644883,-200.0,0.00041344,2]
[404765021,1770516644892,-200.0,0.00041344,2]
[404765022,1770516644902,-200.0,0.00041344,2]
[404765023,1770516644915,-200.0,0.00041344,2]
[404765024,1770516644925,-208.0,0.00041344,2]
[404765025,1770516644935,-171.06,0.00041428,120]
[404765026,1770516644944,-153.0,0.000415,120]
[404765027,1770516644954,-171.07293598,0.00041528,120]
[404765028,1770516644964,-13151.0,0.000416,14]
[404765029,1770516644979,-152.0,0.000419,120]
[404765030,1770516644990,-586.0,0.00042,120]
[404765031,1770516645003,-213.75126474,0.00042,2]
[404765032,1770516645014,-1000.0,0.00042,120]
[404765033,1770516645025,-1000.0,0.00042,120]
[404765034,1770516645035,-160.0,0.00042,120]
[404765035,1770516645045,-1000.0,0.00042,120]
[404765036,1770516645054,-517.18,0.00042007,120]
[404765037,1770516645063,-300.081008,0.00042148,110]
[404765038,1770516645073,-153.0,0.000423,120]
[404765039,1770516645083,-150.0,0.00042426,120]
[404765040,1770516645096,-20000.0,0.00042466,120]
[404765041,1770516645106,-500.0,0.00042537,60]
[404765042,1770516645115,-500.0,0.00042537,60]
[404765043,1770516645125,-500.0,0.00042537,60]
[404765044,1770516645135,-18684.45,0.00042546,120]
[404765045,1770516645145,-11677.78,0.00042546,30]
[404765046,1770516645155,-509.0,0.0004277,14]
[404765047,1770516645165,-152.0,0.000428,120]
[404765048,1770516645175,-13151.0,0.000428,2]
[404765049,1770516645185,-9092.0,0.00042815,30]
[404765050,1770516645195,-278.82588179,0.00042819,7]
[404765051,1770516645205,-200.0,0.00042841,3]
[404765052,1770516645215,-154.09482879,0.000429,120]
[404765053,1770516645224,-707.27,0.00043,30]
[404765054,1770516645234,-212.0,0.00043,30]
[404765055,1770516645243,-153.0,0.00043,120]
[404765056,1770516645252,-1000.0,0.00043,120]
[404765057,1770516645262,-1000.0,0.00043,120]
[404765058,1770516645271,-1000.0,0.00043,120]
[404765059,1770516645281,-160.0,0.00043,30]
[404765060,1770516645291,-160.0,0.00043,120]
[404765061,1770516645300,-10000.0,0.00043,120]
[404765062,1770516645310,-168.0,0.00043,90]
[404765063,1770516645319,-160.0,0.00043,30]
[404765064,1770516645329,-150.0,0.000432,120]
[404765065,1770516645339,-151.4213,0.0004322,7]
[404765066,1770516645349,-9092.0,0.00043256,30]
[404765067,1770516645358,-151.0,0.00043287,60]
[404765068,1770516645371,-988.72160231,0.00043319,120]
[404765069,1770516645380,-152.52520712,0.000434,120]
[404765070,1770516645390,-2804.0,0.000435,7]
[404765071,1770516645399,-1000.0,0.00043562,30]
[404765072,1770516645409,-2000.0,0.000436,2]
[404765073,1770516645419,-3854.56,0.000436,120]
[404765074,1770516645428,-200.0,0.00043626,4]
[404765075,1770516645437,-500.0,0.00043633,60]
[404765076,1770516645446,-500.0,0.00043633,60]
[404765077,1770516645456,-500.0,0.00043633,60]
[404765078,1770516645466,-9092.0,0.00043697,30]
[404765079,1770516645475,-152.0,0.000437,120]
[404765080,1770516645485,-561.0,0.00043728,2]
[404765081,1770516645495,-123103.44549684,0.0004373,2]
[404765082,1770516645504,-162.38812646,0.00043732,120]
[404765083,1770516645513,-153.0,0.000438,120]
[404765084,1770516645523,-453.98,0.000438,120]
[404765085,1770516645532,-500.0,0.00043835,120]
[404765086,1770516645542,-500.0,0.00043835,120]
[404765087,1770516645551,-500.0,0.00043835,120]
[404765088,1770516645561,-500.0,0.00043835,120]
[404765089,1770516645571,-500.0,0.00043835,120]
[404765090,1770516645581,-500.0,0.00043835,120]
[404765091,1770516645591,-497.29825063,0.00043835,120]
[404765092,1770516645602,-500.0,0.00043835,120]
[404765093,1770516645611,-500.0,0.00043835,120]
[404765094,1770516645621,-500.0,0.00043835,120]
[404765095,1770516645631,-500.0,0.00043835,120]
[404765096,1770516645640,-500.0,0.00043835,120]
[404765097,1770516645650,-500.0,0.00043835,120]
[404765098,1770516645660,-549.37099776,0.00043835,120]
[404765099,1770516645669,-500.0,0.00043835,120]
[404765100,1770516645679,-500.0,0.00043835,120]
[404765101,1770516645689,-500.0,0.00043835,120]
[404765102,1770516645699,-514.80240291,0.00043835,120]
[404765103,1770516645709,-500.0,0.00043835,120]
[404765104,1770516645719,-512.83628163,0.00043835,120]
[404765105,1770516645729,-500.0,0.00043835,120]
[404765106,1770516645738,-500.0,0.00043835,120]
[404765107,1770516645748,-503.46167375,0.00043835,120]
[404765108,1770516645758,-510.48994209,0.00043835,120]
[404765109,1770516645767,-525.92768358,0.00043835,120]
[404765110,1770516645777,-500.0,0.00043835,120]
[404765111,1770516645787,-500.0,0.00043835,120]
[404765112,1770516645798,-500.0,0.00043835,120]
[404765116,1770516646003,-500.0,0.00043835,120]
[404765118,1770516646013,-500.0,0.00043835,120]
[404765119,1770516646022,-500.0,0.00043835,120]
[404765120,1770516646032,-500.0,0.00043835,120]
[404765121,1770516646043,-534.55632879,0.00043835,120]
[404765122,1770516646053,-500.0,0.00043835,120]
[404765123,1770516646062,-565.83514836,0.00043835,120]
[404765124,1770516646073,-528.2785684,0.00043835,120]
[404765125,1770516646082,-500.0,0.00043835,7]
[404765126,1770516646092,-566.23377766,0.00043835,7]
[404765127,1770516646102,-500.0,0.00043835,120]
[404765128,1770516646111,-500.0,0.00043835,120]
[404765129,1770516646122,-500.0,0.00043835,120]
[404765130,1770516646131,-500.0,0.00043835,120]
[404765131,1770516646141,-530.59188132,0.00043835,120]
[404765132,1770516646150,-500.0,0.00043835,120]
[404765133,1770516646160,-500.0,0.00043835,120]
[404765134,1770516646169,-500.0,0.00043835,120]
[404765135,1770516646178,-563.64286534,0.00043835,120]
[404765136,1770516646187,-500.0,0.00043835,120]
[404765137,1770516646198,-500.0,0.00043835,120]
[404765138,1770516646207,-500.0,0.00043835,120]
[404765139,1770516646217,-500.0,0.00043835,120]
[404765140,1770516646227,-515.39872804,0.00043835,120]
[404765141,1770516646236,-503.19645681,0.00043835,120]
[404765142,1770516646247,-500.0,0.00043835,120]
[404765143,1770516646257,-500.0,0.00043835,120]
[404765144,1770516646267,-500.0,0.00043835,120]
[404765145,1770516646277,-500.0,0.00043835,120]
[404765146,1770516646287,-500.0,0.00043835,120]
[404765147,1770516646296,-500.0,0.00043835,120]
[404765148,1770516646306,-500.0,0.00043835,120]
[404765149,1770516646316,-500.0,0.00043835,120]
[404765150,1770516646326,-500.0,0.00043835,120]
[404765151,1770516646337,-500.0,0.00043835,120]
[404765152,1770516646346,-500.0,0.00043835,120]
[404765153,1770516646355,-500.0,0.00043835,120]
[404765154,1770516646366,-500.0,0.00043835,120]
[404765155,1770516646375,-500.0,0.00043835,120]
[404765156,1770516646384,-500.0,0.00043835,120]
[404765157,1770516646394,-500.0,0.00043835,120]
[404765158,1770516646403,-500.0,0.00043835,120]
[404765159,1770516646412,-500.0,0.00043835,120]
[404765160,1770516646422,-500.0,0.00043835,120]
[404765161,1770516646431,-500.0,0.00043835,120]
[404765162,1770516646440,-550.45774297,0.00043835,120]
[404765163,1770516646450,-199.50253493,0.00043835,15]
[404765164,1770516646459,-204.54753171,0.00043835,120]
[404765165,1770516646468,-160.56891195,0.00043835,120]
[404765166,1770516646477,-290.30253485,0.00043835,120]
[404765167,1770516646487,-20000.0,0.00043835,120]
[404765168,1770516646496,-500.0,0.00043835,2]
[404765169,1770516646505,-500.0,0.00043835,2]
[404765170,1770516646515,-162.06284473,0.00043835,2]
[404765171,1770516646524,-152.62264696,0.00043835,120]
[404765172,1770516646533,-169.58173965,0.00043835,120]
[404765173,1770516646543,-500.0,0.00043835,120]
[404765174,1770516646552,-500.0,0.00043835,120]
[404765175,1770516646561,-206.10101478,0.00043835,120]
[404765176,1770516646572,-162.26818723,0.00043835,120]
[404765177,1770516646582,-424.57,0.00043835,2]
[404765178,1770516646591,-424.57,0.00043835,2]
[404765179,1770516646600,-424.57,0.00043835,2]
[404765180,1770516646610,-424.57,0.00043835,2]
[404765181,1770516646619,-424.57,0.00043835,2]
[404765182,1770516646629,-424.57,0.00043835,2]
[404765183,1770516646639,-424.57,0.00043835,2]
[404765184,1770516646648,-424.57,0.00043835,2]
[404765185,1770516646658,-424.57,0.00043835,2]
[404765186,1770516646667,-424.57,0.00043835,2]
[404765187,1770516646677,-424.57,0.00043835,2]
[404765188,1770516646686,-424.57,0.00043835,2]
[404765189,1770516646696,-424.57,0.00043835,2]
[404765190,1770516646705,-424.57,0.00043835,2]
[404765191,1770516646715,-424.57,0.00043835,2]
[404765192,1770516646726,-424.57,0.00043835,2]
[404765193,1770516646736,-424.57,0.00043835,2]
[404765194,1770516646746,-167.5810362,0.00043835,120]
[404765195,1770516646756,-215.77660446,0.00043835,120]
[404765196,1770516646765,-628.65026612,0.00043835,120]
[404765197,1770516646776,-500.0,0.00043835,120]
[404765198,1770516646787,-430.8793141,0.00043835,120]
[404765199,1770516646796,-500.0,0.00043835,120]
[404765200,1770516646808,-500.0,0.00043835,120]
[404765201,1770516646817,-536.77866788,0.00043835,120]
[404765202,1770516646827,-177.2134038,0.00043835,120]
[404765203,1770516646836,-500.0,0.00043835,120]
[404765204,1770516646846,-500.0,0.00043835,120]
[404765205,1770516646855,-500.0,0.00043835,120]
[404765206,1770516646864,-500.0,0.00043835,120]
[404765207,1770516646874,-534.32094013,0.00043835,120]
[404765208,1770516646884,-500.0,0.00043835,120]
[404765209,1770516646894,-500.0,0.00043835,120]
[404765210,1770516646903,-500.0,0.00043835,120]
[404765211,1770516646912,-329.91078574,0.00043835,120]
[404765212,1770516646922,-195.62835296,0.00043835,120]
[404765213,1770516646933,-181.61569994,0.00043835,120]
[404765214,1770516646944,-500.0,0.00043835,120]
[404765215,1770516646954,-500.0,0.00043835,120]
[404765216,1770516646964,-500.0,0.00043835,120]
[404765217,1770516646973,-500.0,0.00043835,120]
[404765218,1770516646983,-500.0,0.00043835,120]
[404765219,1770516646993,-513.42355477,0.00043835,120]
[404765220,1770516647004,-500.0,0.00043835,60]
[404765221,1770516647013,-500.0,0.00043835,60]
[404765222,1770516647023,-500.0,0.00043835,60]
[404765223,1770516647032,-500.0,0.00043835,60]
[404765224,1770516647042,-500.0,0.00043835,60]
[404765225,1770516647051,-500.0,0.00043835,60]
[404765226,1770516647060,-500.0,0.00043835,60]
[404765227,1770516647071,-500.0,0.00043835,60]
[404765228,1770516647082,-500.0,0.00043835,60]
[404765229,1770516647093,-500.0,0.00043835,60]
[404765230,1770516647102,-500.0,0.00043835,60]
[404765231,1770516647112,-500.0,0.00043835,60]
[404765232,1770516647122,-500.0,0.00043835,60]
[404765233,1770516647131,-500.0,0.00043835,60]
[404765234,1770516647140,-500.0,0.00043835,60]
[404765235,1770516647151,-500.0,0.00043835,60]
[404765236,1770516647161,-500.0,0.00043835,60]
[404765237,1770516647171,-500.0,0.00043835,120]
[404765238,1770516647182,-500.0,0.00043835,120]
[404765239,1770516647194,-500.0,0.00043835,120]
[404765240,1770516647203,-500.0,0.00043835,120]
[404765241,1770516647213,-500.0,0.00043835,120]
[404765242,1770516647223,-500.0,0.00043835,120]
[404765243,1770516647234,-500.0,0.00043835,120]
[404765244,1770516647243,-577.70048709,0.00043835,120]
[404765245,1770516647254,-500.0,0.00043835,120]
[404765246,1770516647265,-500.0,0.00043835,120]
[404765247,1770516647277,-500.0,0.00043835,120]
[404765248,1770516647287,-500.0,0.00043835,120]
[404765249,1770516647297,-500.0,0.00043835,120]
[404765250,1770516647307,-500.0,0.00043835,120]
[404765251,1770516647316,-500.0,0.00043835,120]
[404765252,1770516647325,-500.0,0.00043835,120]
[404765253,1770516647333,-500.0,0.00043835,120]
[404765254,1770516647341,-500.0,0.00043835,120]
[404765255,1770516647349,-500.0,0.00043835,120]
[404765256,1770516647359,-500.0,0.00043835,120]
[404765257,1770516647368,-330.41545386,0.00043835,120]
[404765258,1770516647378,-500.0,0.00043835,120]
[404765259,1770516647388,-500.0,0.00043835,120]
[404765260,1770516647397,-603.69467804,0.00043835,120]
[404765261,1770516647407,-500.0,0.00043835,2]
[404765262,1770516647416,-500.0,0.00043835,2]
[404765263,1770516647425,-500.0,0.00043835,2]
[404765264,1770516647436,-500.0,0.00043835,2]
[404765265,1770516647448,-500.0,0.00043835,120]
[404765266,1770516647457,-500.0,0.00043835,2]
[404765267,1770516647467,-500.0,0.00043835,2]
[404765268,1770516647477,-500.0,0.00043835,120]
[404765269,1770516647488,-500.0,0.00043835,2]
[404765270,1770516647498,-500.0,0.00043835,120]
[404765271,1770516647509,-500.0,0.00043835,2]
[404765272,1770516647519,-500.0,0.00043835,120]
[404765273,1770516647529,-500.0,0.00043835,2]
[404765274,1770516647540,-500.0,0.00043835,120]
[404765275,1770516647549,-500.0,0.00043835,2]
[404765276,1770516647559,-552.43191112,0.00043835,120]
[404765277,1770516647568,-500.0,0.00043835,2]
[404765278,1770516647577,-500.0,0.00043835,2]
[404765279,1770516647586,-500.0,0.00043835,2]
[404765280,1770516647595,-500.0,0.00043835,2]
[404765281,1770516647605,-398.59085793,0.00043835,2]
[404765282,1770516647614,-500.0,0.00043835,120]
[404765283,1770516647623,-500.0,0.00043835,120]
[404765284,1770516647632,-500.0,0.00043835,120]
[404765285,1770516647642,-500.0,0.00043835,120]
[404765286,1770516647653,-500.0,0.00043835,120]
[404765287,1770516647663,-500.0,0.00043835,120]
[404765288,1770516647673,-531.28753635,0.00043835,120]
[404765289,1770516647683,-552.46,0.00043835,120]
[404765290,1770516647694,-552.46,0.00043835,120]
[404765291,1770516647703,-552.46,0.00043835,120]
[404765292,1770516647713,-500.0,0.00043835,120]
[404765293,1770516647723,-552.46,0.00043835,120]
[404765294,1770516647732,-500.0,0.00043835,120]
[404765295,1770516647742,-552.46,0.00043835,120]
[404765296,1770516647751,-500.0,0.00043835,120]
[404765297,1770516647760,-552.46,0.00043835,120]
[404765298,1770516647770,-500.0,0.00043835,120]
[404765299,1770516647780,-500.0,0.00043835,120]
[404765300,1770516647789,-552.46,0.00043835,120]
[404765301,1770516647799,-500.0,0.00043835,120]
[404765302,1770516647808,-500.0,0.00043835,120]
[404765303,1770516647818,-552.46,0.00043835,120]
[404765304,1770516647827,-500.0,0.00043835,120]
[404765305,1770516647836,-500.0,0.00043835,120]
[404765306,1770516647845,-500.0,0.00043835,120]
[404765307,1770516647855,-552.46,0.00043835,120]
[404765308,1770516647864,-500.0,0.00043835,120]
[404765309,1770516647873,-500.0,0.00043835,120]
[404765310,1770516647883,-552.46,0.00043835,120]
[404765311,1770516647892,-500.0,0.00043835,120]
[404765312,1770516647901,-500.0,0.00043835,120]
[404765313,1770516647911,-552.46,0.00043835,120]
[404765314,1770516647920,-511.67151568,0.00043835,120]
[404765315,1770516647929,-583.63605762,0.00043835,120]
[404765316,1770516647939,-552.46,0.00043835,120]
[404765317,1770516647948,-552.46,0.00043835,120]
[404765318,1770516647958,-552.46,0.00043835,120]
[404765319,1770516647967,-552.46,0.00043835,120]
[404765320,1770516647977,-552.46,0.00043835,120]
[404765321,1770516647987,-552.46,0.00043835,120]
[404765322,1770516647998,-500.0,0.00043835,120]
[404765323,1770516648010,-352.53046566,0.00043835,120]
[404765324,1770516648019,-500.0,0.00043835,120]
[404765325,1770516648028,-500.0,0.00043835,120]
[404765326,1770516648038,-500.0,0.00043835,120]
[404765327,1770516648048,-529.4937605,0.00043835,120]
[404765328,1770516648056,-500.0,0.00043835,90]
[404765329,1770516648066,-500.0,0.00043835,90]
[404765330,1770516648075,-500.0,0.00043835,90]
[404765331,1770516648086,-500.0,0.00043835,90]
[404765332,1770516648096,-500.0,0.00043835,90]
[404765333,1770516648105,-540.15303708,0.00043835,120]
[404765334,1770516648114,-500.0,0.00043835,90]
[404765335,1770516648123,-500.0,0.00043835,90]
[404765336,1770516648132,-500.0,0.00043835,90]
[404765337,1770516648142,-500.0,0.00043835,90]
[404765338,1770516648152,-500.0,0.00043835,90]
[404765339,1770516648161,-500.0,0.00043835,90]
[404765340,1770516648170,-500.0,0.00043835,90]
[404765341,1770516648180,-500.0,0.00043835,90]
[404765342,1770516648189,-500.0,0.00043835,120]
[404765343,1770516648198,-500.0,0.00043835,90]
[404765344,1770516648207,-252.83245076,0.00043835,120]
[404765345,1770516648216,-500.0,0.00043835,90]
[404765346,1770516648225,-340.04339798,0.00043835,90]
[404765347,1770516648235,-362.80523825,0.00043835,120]
[404765348,1770516648244,-684.49,0.00043835,120]
[404765349,1770516648253,-684.49,0.00043835,120]
[404765350,1770516648262,-684.49,0.00043835,120]
[404765351,1770516648272,-684.49,0.00043835,120]
[404765352,1770516648281,-684.49,0.00043835,120]
[404765353,1770516648290,-684.49,0.00043835,120]
[404765354,1770516648299,-684.49,0.00043835,120]
[404765355,1770516648308,-684.49,0.00043835,120]
[404765356,1770516648317,-684.49,0.00043835,120]
[404765357,1770516648328,-684.49,0.00043835,120]
[404765358,1770516648337,-684.49,0.00043835,120]
[404765359,1770516648381,-684.49,0.00043835,120]
[404765360,1770516648391,-684.49,0.00043835,120]
[404765361,1770516648400,-684.49,0.00043835,120]
[404765362,1770516648409,-684.49,0.00043835,120]
[404765363,1770516648418,-684.49,0.00043835,120]
[404765364,1770516648427,-684.49,0.00043835,120]
[404765365,1770516648436,-684.49,0.00043835,120]
[404765366,1770516648447,-500.0,0.00043835,120]
[404765367,1770516648456,-500.0,0.00043835,120]
[404765368,1770516648465,-500.0,0.00043835,120]
[404765369,1770516648474,-500.0,0.00043835,120]
[404765370,1770516648483,-500.0,0.00043835,120]
[404765371,1770516648492,-500.0,0.00043835,120]
[404765372,1770516648501,-270.01006429,0.00043835,120]
[404765373,1770516648510,-500.0,0.00043835,120]
[404765374,1770516648519,-492.46470656,0.00043835,120]
[404765375,1770516648528,-500.0,0.00043835,120]
[404765376,1770516648537,-500.0,0.00043835,120]
[404765377,1770516648547,-155.72725976,0.00043835,120]
[404765378,1770516648556,-500.0,0.00043835,120]
[404765379,1770516648565,-500.0,0.00043835,120]
[404765380,1770516648574,-593.39503963,0.00043835,120]
[404765381,1770516648583,-500.0,0.00043835,120]
[404765382,1770516648591,-500.0,0.00043835,120]
[404765383,1770516648601,-500.0,0.00043835,120]
[404765384,1770516648610,-500.0,0.00043835,120]
[404765385,1770516648619,-478.26397458,0.00043835,120]
[404765386,1770516648627,-500.0,0.00043835,120]
[404765387,1770516648636,-500.0,0.00043835,120]
[404765388,1770516648645,-500.0,0.00043835,120]
[404765389,1770516648655,-500.0,0.00043835,120]
[404765390,1770516648665,-500.0,0.00043835,120]
[404765391,1770516648674,-500.0,0.00043835,120]
[404765392,1770516648683,-500.0,0.00043835,120]
[404765393,1770516648692,-500.0,0.00043835,120]
[404765394,1770516648702,-284.72299724,0.00043835,120]
[404765395,1770516648711,-500.0,0.00043835,120]